[Event "December 12 Early 2023"]
[Site "https://www.chess.com"]
[Date "2023.12.12"]
[Round "8"]
[White "Hirneise, Jens"]
[Black "Shuvalova, Polina"]
[Result "1/2-1/2"]
[Board "56"]
[TimeControl "180+1"]
[WhiteFideId "24614734"]
[BlackFideId "24171760"]
[WhiteElo "2534"]
[BlackElo "2761"]
[WhiteTeam "GER"]
[BlackTeam "RUS"]
[WhiteClock "0:00:05"]
[BlackClock "0:00:05"]

1. d3 {[%clk 0:02:50]}  d5 {[%clk 0:02:59]} 2. Nf3 {[%clk 0:02:50]}  Nf6 {[%clk 0:02:58]} 3. g3 {[%clk 0:02:50]}  g6 {[%clk 0:02:59]} 4. Bg2 {[%clk 0:02:51]}  Bg7 {[%clk 0:02:59]} 5. O-O {[%clk 0:02:51]}  O-O {[%clk 0:02:59]} 6. c4 {[%clk 0:02:51]}  dxc4 {[%clk 0:02:59]} 7. dxc4 {[%clk 0:02:51]}  c5 {[%clk 0:02:59]} 8. Nc3 {[%clk 0:02:49]}  Nc6 {[%clk 0:02:59]} 9. Be3 {[%clk 0:02:44]}  Be6 {[%clk 0:02:44]} 10. Bxc5 {[%clk 0:02:39]}  Bxc4 {[%clk 0:02:43]} 11. Qa4 {[%clk 0:02:30]}  Be6 {[%clk 0:02:33]} 12. Rfd1 {[%clk 0:02:27]}  Qe8 {[%clk 0:02:24]} 13. Ng5 {[%clk 0:02:19]}  Bd7 {[%clk 0:02:21]} 14. Qa3 {[%clk 0:02:15]}  h6 {[%clk 0:02:18]} 15. Nh3 {[%clk 0:02:10]}  Rc8 {[%clk 0:02:15]} 16. Bxc6 {[%clk 0:02:07]}  Rxc6 {[%clk 0:02:14]} 17. Nf4 {[%clk 0:02:05]}  Qc8 {[%clk 0:02:07]} 18. Bxe7 {[%clk 0:02:03]}  Re8 {[%clk 0:02:08]} 19. Bxf6 {[%clk 0:01:46]}  Bxf6 {[%clk 0:01:57]} 20. Nfd5 {[%clk 0:01:42]}  Bd8 {[%clk 0:01:48]} 21. Qxa7 {[%clk 0:01:40]}  Rce6 {[%clk 0:01:40]} 22. Qd4 {[%clk 0:01:35]}  Bc6 {[%clk 0:01:36]} 23. e4 {[%clk 0:01:34]}  Kh7 {[%clk 0:01:31]} 24. Rac1 {[%clk 0:01:26]}  Qa8 {[%clk 0:01:30]} 25. b4 {[%clk 0:01:22]}  Bxd5 {[%clk 0:01:16]} 26. exd5 {[%clk 0:01:19]}  Rf6 {[%clk 0:01:02]} 27. Ne4 {[%clk 0:01:15]}  Rb6 {[%clk 0:00:53]} 28. d6 {[%clk 0:01:10]}  Qxa2 {[%clk 0:00:34]} 29. d7 {[%clk 0:01:06]}  Rf8 {[%clk 0:00:32]} 30. Rc8 {[%clk 0:01:04]}  Re6 {[%clk 0:00:31]} 31. Nc5 {[%clk 0:00:56]}  Rb6 {[%clk 0:00:12]} 32. Re1 {[%clk 0:00:43]}  Bf6 {[%clk 0:00:05]} 33. Rxf8 {[%clk 0:00:31]}  Bxd4 {[%clk 0:00:04]} 34. Rf1 {[%clk 0:00:19]}  Rd6 {[%clk 0:00:04]} 35. d8=Q {[%clk 0:00:15]}  Rxd8 {[%clk 0:00:05]} 36. Rxd8 {[%clk 0:00:16]}  Bxc5 {[%clk 0:00:04]} 37. bxc5 {[%clk 0:00:16]}  Qc4 {[%clk 0:00:05]} 38. Rd7 {[%clk 0:00:16]}  Kg7 {[%clk 0:00:05]} 39. Rb1 {[%clk 0:00:14]}  Qxc5 {[%clk 0:00:05]} 40. Rbxb7 {[%clk 0:00:13]}  Qc1+ {[%clk 0:00:05]} 41. Kg2 {[%clk 0:00:13]}  Qc6+ {[%clk 0:00:06]} 42. f3 {[%clk 0:00:12]}  Qc2+ {[%clk 0:00:06]} 43. Kg1 {[%clk 0:00:09]}  Qc1+ {[%clk 0:00:05]} 44. Kf2 {[%clk 0:00:08]}  Qc2+ {[%clk 0:00:06]} 45. Ke3 {[%clk 0:00:08]}  Qc5+ {[%clk 0:00:06]} 46. Kd3 {[%clk 0:00:08]}  Qf5+ {[%clk 0:00:06]} 47. Ke3 {[%clk 0:00:07]}  Qc5+ {[%clk 0:00:06]} 48. Ke2 {[%clk 0:00:07]}  Qc2+ {[%clk 0:00:05]} 49. Ke3 {[%clk 0:00:05]}  Qc3+ {[%clk 0:00:05]} 50. Ke2 {[%clk 0:00:05]}  Qc2+ {[%clk 0:00:05]} 51. Ke3 {[%clk 0:00:05]} 1/2-1/2

[Event "December 12 Early 2023"]
[Site "https://www.chess.com"]
[Date "2023.12.12"]
[Round "8"]
[White "Rogov, Matfey"]
[Black "Aaditya Dhingra"]
[Result "0-1"]
[Board "60"]
[TimeControl "180+1"]
[WhiteFideId "44191308"]
[BlackFideId "25678191"]
[WhiteElo "2527"]
[BlackElo "2687"]
[WhiteTeam "RUS"]
[BlackTeam "IND"]
[WhiteClock "0:00:00"]
[BlackClock "0:01:42"]

1. e4 {[%clk 0:02:56]}  g6 {[%clk 0:02:59]} 2. Nc3 {[%clk 0:02:56]}  Bg7 {[%clk 0:02:59]} 3. f4 {[%clk 0:02:56]}  c6 {[%clk 0:02:58]} 4. Nf3 {[%clk 0:02:52]}  d5 {[%clk 0:02:58]} 5. d3 {[%clk 0:02:52]}  Bg4 {[%clk 0:02:54]} 6. Be2 {[%clk 0:02:52]}  Bxf3 {[%clk 0:02:51]} 7. Bxf3 {[%clk 0:02:52]}  Nf6 {[%clk 0:02:51]} 8. O-O {[%clk 0:02:51]}  dxe4 {[%clk 0:02:50]} 9. dxe4 {[%clk 0:02:50]}  Qxd1 {[%clk 0:02:49]} 10. Rxd1 {[%clk 0:02:51]}  e5 {[%clk 0:02:50]} 11. fxe5 {[%clk 0:02:33]}  Nfd7 {[%clk 0:02:49]} 12. e6 {[%clk 0:02:34]}  fxe6 {[%clk 0:02:48]} 13. Bg4 {[%clk 0:02:34]}  Ke7 {[%clk 0:02:46]} 14. Bf4 {[%clk 0:02:26]}  Ne5 {[%clk 0:02:42]} 15. Bh3 {[%clk 0:02:11]}  Nbd7 {[%clk 0:02:41]} 16. Ne2 {[%clk 0:02:06]}  Rhf8 {[%clk 0:02:33]} 17. Bg5+ {[%clk 0:01:57]}  Bf6 {[%clk 0:02:32]} 18. Bh6 {[%clk 0:01:57]}  Rfd8 {[%clk 0:02:29]} 19. Nf4 {[%clk 0:01:30]}  Nf7 {[%clk 0:02:24]} 20. Nxe6 {[%clk 0:01:09]}  Nxh6 {[%clk 0:02:23]} 21. Nxd8 {[%clk 0:01:09]}  Rxd8 {[%clk 0:02:24]} 22. Bxd7 {[%clk 0:01:05]}  Rxd7 {[%clk 0:02:24]} 23. Rxd7+ {[%clk 0:01:05]}  Kxd7 {[%clk 0:02:24]} 24. c3 {[%clk 0:01:03]}  Nf7 {[%clk 0:02:23]} 25. Kf2 {[%clk 0:01:03]}  Nd6 {[%clk 0:02:22]} 26. Kf3 {[%clk 0:00:59]}  Nc4 {[%clk 0:02:22]} 27. Rd1+ {[%clk 0:00:50]}  Ke6 {[%clk 0:02:21]} 28. b3 {[%clk 0:00:44]}  Nd6 {[%clk 0:02:15]} 29. c4 {[%clk 0:00:38]}  Nf7 {[%clk 0:02:15]} 30. g3 {[%clk 0:00:35]}  Ne5+ {[%clk 0:02:13]} 31. Kf4 {[%clk 0:00:35]}  Be7 {[%clk 0:02:10]} 32. h4 {[%clk 0:00:34]}  h6 {[%clk 0:02:08]} 33. Ke3 {[%clk 0:00:22]}  a5 {[%clk 0:02:03]} 34. Kd4 {[%clk 0:00:17]}  Bd6 {[%clk 0:01:58]} 35. c5 {[%clk 0:00:16]}  Bc7 {[%clk 0:01:56]} 36. Rf1 {[%clk 0:00:13]}  Nd7 {[%clk 0:01:55]} 37. g4 {[%clk 0:00:10]}  Be5+ {[%clk 0:01:51]} 38. Kc4 {[%clk 0:00:10]}  Bf6 {[%clk 0:01:51]} 39. h5 {[%clk 0:00:09]}  g5 {[%clk 0:01:45]} 40. b4 {[%clk 0:00:07]}  axb4 {[%clk 0:01:45]} 41. Kxb4 {[%clk 0:00:08]}  Be7 {[%clk 0:01:45]} 42. Rf5 {[%clk 0:00:06]}  Ne5 {[%clk 0:01:45]} 43. Rf2 {[%clk 0:00:01]}  Nd3+ {[%clk 0:01:44]} 44. Ka5 {[%clk 0:00:01]}  Nxf2 {[%clk 0:01:45]} 45. Kb6 {[%clk 0:00:02]}  Nxe4 {[%clk 0:01:42]} 46. Kxb7 {[%clk 0:00:03]}  Kd7 {[%clk 0:01:42]} 47. a4 {[%clk 0:00:00]}  Nxc5+ {[%clk 0:01:42]} 0-1

[Event "December 12 Early 2023"]
[Site "https://www.chess.com"]
[Date "2023.12.12"]
[Round "8"]
[White "Reprintsev, Alexander"]
[Black "Adla, Diego"]
[Result "0-1"]
[Board "64"]
[TimeControl "180+1"]
[WhiteFideId "14100541"]
[BlackFideId "100072"]
[WhiteElo "2516"]
[BlackElo "2666"]
[WhiteTeam "UKR"]
[BlackTeam "ARG"]
[WhiteClock "0:00:00"]
[BlackClock "0:00:11"]

1. e4 {[%clk 0:02:44]}  e5 {[%clk 0:02:58]} 2. Nf3 {[%clk 0:02:43]}  Nc6 {[%clk 0:02:57]} 3. Bc4 {[%clk 0:02:43]}  Nf6 {[%clk 0:02:56]} 4. Ng5 {[%clk 0:02:43]}  d5 {[%clk 0:02:56]} 5. exd5 {[%clk 0:02:43]}  Na5 {[%clk 0:02:56]} 6. Bb5+ {[%clk 0:02:43]}  Bd7 {[%clk 0:02:57]} 7. Qe2 {[%clk 0:02:36]}  Bd6 {[%clk 0:02:56]} 8. Bxd7+ {[%clk 0:02:21]}  Qxd7 {[%clk 0:02:54]} 9. Nc3 {[%clk 0:02:16]}  c6 {[%clk 0:02:54]} 10. dxc6 {[%clk 0:02:15]}  Nxc6 {[%clk 0:02:52]} 11. O-O {[%clk 0:02:14]}  O-O {[%clk 0:02:51]} 12. Nge4 {[%clk 0:02:03]}  Nxe4 {[%clk 0:02:46]} 13. Nxe4 {[%clk 0:01:58]}  Be7 {[%clk 0:02:46]} 14. d3 {[%clk 0:01:56]}  Rac8 {[%clk 0:02:37]} 15. Be3 {[%clk 0:01:54]}  f5 {[%clk 0:02:33]} 16. Nc5 {[%clk 0:01:49]}  Qd5 {[%clk 0:02:33]} 17. c4 {[%clk 0:01:43]}  Qf7 {[%clk 0:02:15]} 18. Nxb7 {[%clk 0:01:33]}  Rc7 {[%clk 0:02:02]} 19. Nc5 {[%clk 0:01:30]}  f4 {[%clk 0:02:03]} 20. Na6 {[%clk 0:01:28]}  Rb7 {[%clk 0:01:55]} 21. Bc5 {[%clk 0:01:26]}  Qg6 {[%clk 0:01:49]} 22. f3 {[%clk 0:01:05]}  Nd4 {[%clk 0:01:39]} 23. Bxd4 {[%clk 0:01:04]}  exd4 {[%clk 0:01:39]} 24. a3 {[%clk 0:00:55]}  Qxa6 {[%clk 0:01:38]} 25. b4 {[%clk 0:00:55]}  Qf6 {[%clk 0:01:36]} 26. Rfe1 {[%clk 0:00:54]}  Bd8 {[%clk 0:01:35]} 27. c5 {[%clk 0:00:53]}  Re7 {[%clk 0:01:35]} 28. Qa2+ {[%clk 0:00:53]}  Qf7 {[%clk 0:01:31]} 29. Qxf7+ {[%clk 0:00:51]}  Kxf7 {[%clk 0:01:31]} 30. Re4 {[%clk 0:00:51]}  Rxe4 {[%clk 0:01:30]} 31. fxe4 {[%clk 0:00:51]}  Ke6 {[%clk 0:01:31]} 32. Rc1 {[%clk 0:00:50]}  f3 {[%clk 0:01:29]} 33. Rc4 {[%clk 0:00:46]}  Bg5 {[%clk 0:01:28]} 34. gxf3 {[%clk 0:00:40]}  Rxf3 {[%clk 0:01:26]} 35. c6 {[%clk 0:00:39]}  Rf8 {[%clk 0:01:20]} 36. b5 {[%clk 0:00:36]}  Be3+ {[%clk 0:01:13]} 37. Kg2 {[%clk 0:00:36]}  Kd6 {[%clk 0:01:13]} 38. a4 {[%clk 0:00:35]}  Rc8 {[%clk 0:01:13]} 39. a5 {[%clk 0:00:34]}  g5 {[%clk 0:01:02]} 40. e5+ {[%clk 0:00:33]}  Kc7 {[%clk 0:01:00]} 41. Kf3 {[%clk 0:00:32]}  h5 {[%clk 0:00:57]} 42. Ke4 {[%clk 0:00:32]}  g4 {[%clk 0:00:57]} 43. Kd5 {[%clk 0:00:28]}  Bd2 {[%clk 0:00:51]} 44. Rxd4 {[%clk 0:00:18]}  Bxa5 {[%clk 0:00:51]} 45. Rf4 {[%clk 0:00:18]}  Rd8+ {[%clk 0:00:49]} 46. Kc4 {[%clk 0:00:18]}  Bb6 {[%clk 0:00:43]} 47. Rf7+ {[%clk 0:00:17]}  Kc8 {[%clk 0:00:44]} 48. e6 {[%clk 0:00:17]}  Bc7 {[%clk 0:00:29]} 49. Rh7 {[%clk 0:00:15]}  Bxh2 {[%clk 0:00:25]} 50. Rxh5 {[%clk 0:00:15]}  Bc7 {[%clk 0:00:23]} 51. Rg5 {[%clk 0:00:15]}  g3 {[%clk 0:00:24]} 52. Rg7 {[%clk 0:00:15]}  Be5 {[%clk 0:00:15]} 53. Rg5 {[%clk 0:00:09]}  Bf4 {[%clk 0:00:15]} 54. Rg4 {[%clk 0:00:09]}  Bc7 {[%clk 0:00:14]} 55. d4 {[%clk 0:00:08]}  Bd6 {[%clk 0:00:13]} 56. d5 {[%clk 0:00:08]}  Re8 {[%clk 0:00:11]} 57. Rg7 {[%clk 0:00:08]}  Re7 {[%clk 0:00:12]} 58. Rg8+ {[%clk 0:00:08]}  Kc7 {[%clk 0:00:12]} 59. Kd3 {[%clk 0:00:08]}  Kb6 {[%clk 0:00:12]} 60. Ke4 {[%clk 0:00:04]}  Kxb5 {[%clk 0:00:11]} 61. Kf3 {[%clk 0:00:03]}  Kc5 {[%clk 0:00:11]} 62. Rg5 {[%clk 0:00:02]}  a5 {[%clk 0:00:11]} 63. Kg2 {[%clk 0:00:01]}  a4 {[%clk 0:00:11]} 64. Rg8 {[%clk 0:00:02]}  a3 {[%clk 0:00:11]} 65. Ra8 {[%clk 0:00:00]}  Kxd5 {[%clk 0:00:11]} 0-1

[Event "December 12 Early 2023"]
[Site "https://www.chess.com"]
[Date "2023.12.12"]
[Round "8"]
[White "Senft, Sean"]
[Black "Koellner, Ruben Gideon"]
[Result "0-1"]
[Board "67"]
[TimeControl "180+1"]
[WhiteFideId "2044960"]
[BlackFideId "12993093"]
[WhiteElo "2492"]
[BlackElo "2649"]
[WhiteTeam "USA"]
[BlackTeam "GER"]
[WhiteClock "0:01:17"]
[BlackClock "0:02:22"]

1. d4 {[%clk 0:03:00]}  d6 {[%clk 0:03:00]} 2. c4 {[%clk 0:02:59]}  e5 {[%clk 0:03:00]} 3. Nf3 {[%clk 0:02:58]}  e4 {[%clk 0:03:00]} 4. Ng5 {[%clk 0:02:52]}  f5 {[%clk 0:03:00]} 5. Nc3 {[%clk 0:02:48]}  Be7 {[%clk 0:02:59]} 6. Nh3 {[%clk 0:02:48]}  Nf6 {[%clk 0:02:59]} 7. g3 {[%clk 0:02:44]}  d5 {[%clk 0:02:59]} 8. cxd5 {[%clk 0:02:42]}  Nxd5 {[%clk 0:03:00]} 9. Bg2 {[%clk 0:02:42]}  O-O {[%clk 0:02:59]} 10. O-O {[%clk 0:02:38]}  Be6 {[%clk 0:02:56]} 11. Nf4 {[%clk 0:02:35]}  Nxf4 {[%clk 0:02:55]} 12. Bxf4 {[%clk 0:02:35]}  c6 {[%clk 0:02:53]} 13. Qd2 {[%clk 0:02:21]}  Nd7 {[%clk 0:02:53]} 14. h4 {[%clk 0:02:21]}  Nf6 {[%clk 0:02:53]} 15. Rad1 {[%clk 0:02:19]}  Nd5 {[%clk 0:02:48]} 16. Be5 {[%clk 0:02:18]}  Nxc3 {[%clk 0:02:46]} 17. bxc3 {[%clk 0:02:17]}  Bd6 {[%clk 0:02:43]} 18. Bxd6 {[%clk 0:02:17]}  Qxd6 {[%clk 0:02:44]} 19. Qf4 {[%clk 0:02:03]}  Qxf4 {[%clk 0:02:44]} 20. gxf4 {[%clk 0:02:03]}  Bxa2 {[%clk 0:02:44]} 21. Ra1 {[%clk 0:02:04]}  Bc4 {[%clk 0:02:44]} 22. Rfb1 {[%clk 0:02:00]}  b5 {[%clk 0:02:43]} 23. e3 {[%clk 0:01:58]}  a5 {[%clk 0:02:42]} 24. Bf1 {[%clk 0:01:55]}  Bxf1 {[%clk 0:02:42]} 25. Kxf1 {[%clk 0:01:56]}  Kf7 {[%clk 0:02:41]} 26. Rb2 {[%clk 0:01:55]}  Rfb8 {[%clk 0:02:41]} 27. Ke2 {[%clk 0:01:54]}  Ke6 {[%clk 0:02:41]} 28. Rab1 {[%clk 0:01:52]}  Kd5 {[%clk 0:02:41]} 29. c4+ {[%clk 0:01:47]}  Kxc4 {[%clk 0:02:40]} 30. Rc1+ {[%clk 0:01:47]}  Kd5 {[%clk 0:02:41]} 31. Rc5+ {[%clk 0:01:48]}  Kd6 {[%clk 0:02:41]} 32. Rbc2 {[%clk 0:01:42]}  Ra6 {[%clk 0:02:39]} 33. Rxf5 {[%clk 0:01:40]}  b4 {[%clk 0:02:35]} 34. Kd2 {[%clk 0:01:31]}  a4 {[%clk 0:02:31]} 35. Kc1 {[%clk 0:01:26]}  b3 {[%clk 0:02:31]} 36. Rcc5 {[%clk 0:01:24]}  a3 {[%clk 0:02:31]} 37. Ra5 {[%clk 0:01:20]}  b2+ {[%clk 0:02:21]} 38. Kb1 {[%clk 0:01:20]}  a2+ {[%clk 0:02:21]} 39. Rxa2 {[%clk 0:01:20]}  Rxa2 {[%clk 0:02:21]} 40. Kxa2 {[%clk 0:01:17]}  b1=Q+ {[%clk 0:02:22]} 0-1

[Event "December 12 Early 2023"]
[Site "https://www.chess.com"]
[Date "2023.12.12"]
[Round "8"]
[White "Kochiev, Ivan"]
[Black "Seemann, Jakub"]
[Result "0-1"]
[Board "68"]
[TimeControl "180+1"]
[WhiteFideId "2917890"]
[BlackFideId "21874697"]
[WhiteElo "2485"]
[BlackElo "2647"]
[WhiteTeam "BUL"]
[BlackTeam "POL"]
[WhiteClock "0:00:01"]
[BlackClock "0:01:15"]

1. e4 {[%clk 0:01:37]}  e6 {[%clk 0:02:58]} 2. d4 {[%clk 0:01:37]}  d5 {[%clk 0:02:59]} 3. Nd2 {[%clk 0:01:37]}  dxe4 {[%clk 0:03:00]} 4. Nxe4 {[%clk 0:01:38]}  Nd7 {[%clk 0:02:59]} 5. Bd3 {[%clk 0:01:34]}  Ngf6 {[%clk 0:02:59]} 6. Qe2 {[%clk 0:01:34]}  c5 {[%clk 0:02:53]} 7. Nf3 {[%clk 0:01:31]}  Be7 {[%clk 0:02:53]} 8. dxc5 {[%clk 0:01:27]}  Nxe4 {[%clk 0:02:51]} 9. Bxe4 {[%clk 0:00:55]}  Nxc5 {[%clk 0:02:51]} 10. O-O {[%clk 0:00:55]}  O-O {[%clk 0:02:50]} 11. Rd1 {[%clk 0:00:53]}  Qc7 {[%clk 0:02:48]} 12. c3 {[%clk 0:00:46]}  Nxe4 {[%clk 0:02:48]} 13. Qxe4 {[%clk 0:00:47]}  Bd7 {[%clk 0:02:39]} 14. Ne5 {[%clk 0:00:39]}  Be8 {[%clk 0:02:35]} 15. Bf4 {[%clk 0:00:38]}  Qb6 {[%clk 0:02:34]} 16. Rd2 {[%clk 0:00:32]}  f6 {[%clk 0:02:24]} 17. Nc4 {[%clk 0:00:24]}  Qc6 {[%clk 0:02:23]} 18. Qe2 {[%clk 0:00:19]}  e5 {[%clk 0:02:23]} 19. Bg3 {[%clk 0:00:19]}  b6 {[%clk 0:02:23]} 20. Rad1 {[%clk 0:00:18]}  Bf7 {[%clk 0:02:23]} 21. Ne3 {[%clk 0:00:18]}  Bc5 {[%clk 0:02:20]} 22. Nf5 {[%clk 0:00:16]}  Bg6 {[%clk 0:02:17]} 23. Qg4 {[%clk 0:00:14]}  Rf7 {[%clk 0:02:01]} 24. h4 {[%clk 0:00:13]}  Qc8 {[%clk 0:01:44]} 25. Rd8+ {[%clk 0:00:13]}  Qxd8 {[%clk 0:01:44]} 26. Rxd8+ {[%clk 0:00:13]}  Rxd8 {[%clk 0:01:45]} 27. h5 {[%clk 0:00:13]}  Bxf5 {[%clk 0:01:45]} 28. Qxf5 {[%clk 0:00:14]}  h6 {[%clk 0:01:44]} 29. a4 {[%clk 0:00:12]}  Rfd7 {[%clk 0:01:41]} 30. Bh4 {[%clk 0:00:10]}  Kh8 {[%clk 0:01:42]} 31. Qg6 {[%clk 0:00:10]}  Be7 {[%clk 0:01:40]} 32. Qe4 {[%clk 0:00:07]}  Rd1+ {[%clk 0:01:39]} 33. Kh2 {[%clk 0:00:07]}  R1d2 {[%clk 0:01:37]} 34. b4 {[%clk 0:00:07]}  R2d3 {[%clk 0:01:34]} 35. Qc4 {[%clk 0:00:06]}  R3d7 {[%clk 0:01:31]} 36. Qe4 {[%clk 0:00:04]}  Rc7 {[%clk 0:01:30]} 37. Qc2 {[%clk 0:00:03]}  Bxb4 {[%clk 0:01:29]} 38. Qb3 {[%clk 0:00:02]}  Bc5 {[%clk 0:01:27]} 39. Qe6 {[%clk 0:00:01]}  Be7 {[%clk 0:01:26]} 40. Qf5 {[%clk 0:00:02]}  Rxc3 {[%clk 0:01:24]} 41. a5 {[%clk 0:00:01]}  bxa5 {[%clk 0:01:24]} 42. Qe6 {[%clk 0:00:02]}  Rc7 {[%clk 0:01:24]} 43. Qa6 {[%clk 0:00:02]}  Rd4 {[%clk 0:01:14]} 44. Qxa5 {[%clk 0:00:02]}  Rxh4+ {[%clk 0:01:14]} 45. Kg3 {[%clk 0:00:03]}  Rhc4 {[%clk 0:01:13]} 46. Qa3 {[%clk 0:00:02]}  Rc3+ {[%clk 0:01:14]} 47. Qxc3 {[%clk 0:00:01]}  Rxc3+ {[%clk 0:01:15]} 0-1

[Event "December 12 Early 2023"]
[Site "https://www.chess.com"]
[Date "2023.12.12"]
[Round "8"]
[White "Onoprijchuk, Boris"]
[Black "Skliarov, Viktor"]
[Result "0-1"]
[Board "70"]
[TimeControl "180+1"]
[WhiteFideId "4171179"]
[BlackFideId "14106736"]
[WhiteElo "2473"]
[BlackElo "2637"]
[WhiteTeam "RUS"]
[BlackTeam "UKR"]
[WhiteClock "0:00:00"]
[BlackClock "0:00:11"]

1. d4 {[%clk 0:03:00]}  Nf6 {[%clk 0:02:59]} 2. c4 {[%clk 0:03:00]}  e6 {[%clk 0:02:59]} 3. Nf3 {[%clk 0:03:00]}  b6 {[%clk 0:02:59]} 4. g3 {[%clk 0:02:56]}  Bb7 {[%clk 0:03:00]} 5. Bg2 {[%clk 0:02:56]}  Be7 {[%clk 0:03:00]} 6. O-O {[%clk 0:02:56]}  O-O {[%clk 0:03:01]} 7. Nc3 {[%clk 0:02:54]}  Ne4 {[%clk 0:03:01]} 8. Qc2 {[%clk 0:02:48]}  Nxc3 {[%clk 0:03:01]} 9. Qxc3 {[%clk 0:02:46]}  d6 {[%clk 0:03:00]} 10. Re1 {[%clk 0:02:45]}  Nd7 {[%clk 0:02:56]} 11. e4 {[%clk 0:02:43]}  a5 {[%clk 0:02:54]} 12. b3 {[%clk 0:02:33]}  e5 {[%clk 0:02:54]} 13. d5 {[%clk 0:02:24]}  Nc5 {[%clk 0:02:51]} 14. a3 {[%clk 0:02:15]}  Bc8 {[%clk 0:02:24]} 15. b4 {[%clk 0:02:11]}  axb4 {[%clk 0:02:24]} 16. axb4 {[%clk 0:02:12]}  Rxa1 {[%clk 0:02:24]} 17. Qxa1 {[%clk 0:02:12]}  Nd3 {[%clk 0:02:13]} 18. Rf1 {[%clk 0:02:09]}  Nxb4 {[%clk 0:02:09]} 19. Ne1 {[%clk 0:01:55]}  f5 {[%clk 0:01:59]} 20. Qb1 {[%clk 0:01:44]}  Na6 {[%clk 0:01:57]} 21. exf5 {[%clk 0:01:39]}  Bxf5 {[%clk 0:01:56]} 22. Be4 {[%clk 0:01:38]}  Bxe4 {[%clk 0:01:54]} 23. Qxe4 {[%clk 0:01:39]}  Nc5 {[%clk 0:01:55]} 24. Qe2 {[%clk 0:01:25]}  Bg5 {[%clk 0:01:41]} 25. Ba3 {[%clk 0:01:25]}  Nd7 {[%clk 0:01:21]} 26. h4 {[%clk 0:01:21]}  Bh6 {[%clk 0:01:16]} 27. Nd3 {[%clk 0:01:16]}  Qf6 {[%clk 0:01:13]} 28. Kg2 {[%clk 0:00:59]}  g6 {[%clk 0:00:58]} 29. Ra1 {[%clk 0:00:58]}  e4 {[%clk 0:00:23]} 30. Nb2 {[%clk 0:00:58]}  Qf3+ {[%clk 0:00:20]} 31. Qxf3 {[%clk 0:00:58]}  exf3+ {[%clk 0:00:20]} 32. Kh3 {[%clk 0:00:52]}  Bg7 {[%clk 0:00:19]} 33. Ra2 {[%clk 0:00:44]}  Ra8 {[%clk 0:00:18]} 34. Nd3 {[%clk 0:00:39]}  Ne5 {[%clk 0:00:18]} 35. Nb2 {[%clk 0:00:16]}  h5 {[%clk 0:00:15]} 36. Kh2 {[%clk 0:00:11]}  Ng4+ {[%clk 0:00:15]} 37. Kg1 {[%clk 0:00:11]}  Bd4 {[%clk 0:00:16]} 38. Kf1 {[%clk 0:00:10]}  Bc5 {[%clk 0:00:14]} 39. Ke1 {[%clk 0:00:08]}  Rxa3 {[%clk 0:00:11]} 40. Rxa3 {[%clk 0:00:08]}  Bxa3 {[%clk 0:00:11]} 41. Nd3 {[%clk 0:00:09]}  Bc5 {[%clk 0:00:12]} 42. Kd2 {[%clk 0:00:09]}  Nxf2 {[%clk 0:00:11]} 43. Ne1 {[%clk 0:00:09]}  Ne4+ {[%clk 0:00:11]} 44. Kd3 {[%clk 0:00:00]}  f2 {[%clk 0:00:11]} 0-1

[Event "December 12 Early 2023"]
[Site "https://www.chess.com"]
[Date "2023.12.12"]
[Round "8"]
[White "Pak, Yevgeniy"]
[Black "Renjith, Sravan"]
[Result "0-1"]
[Board "71"]
[TimeControl "180+1"]
[WhiteFideId "14201712"]
[BlackFideId "4306783"]
[WhiteElo "2469"]
[BlackElo "2632"]
[WhiteTeam "KAZ"]
[BlackTeam "NZL"]
[WhiteClock "0:01:16"]
[BlackClock "0:01:23"]

1. e4 {[%clk 0:03:00]}  e5 {[%clk 0:02:59]} 2. Nf3 {[%clk 0:02:58]}  Nc6 {[%clk 0:03:00]} 3. Bb5 {[%clk 0:02:58]}  Nge7 {[%clk 0:03:00]} 4. O-O {[%clk 0:02:55]}  g6 {[%clk 0:03:00]} 5. c3 {[%clk 0:02:51]}  Bg7 {[%clk 0:03:00]} 6. d4 {[%clk 0:02:50]}  exd4 {[%clk 0:03:00]} 7. cxd4 {[%clk 0:02:51]}  d5 {[%clk 0:03:00]} 8. Bxc6+ {[%clk 0:02:47]}  bxc6 {[%clk 0:02:57]} 9. e5 {[%clk 0:02:41]}  O-O {[%clk 0:02:56]} 10. Nc3 {[%clk 0:02:40]}  Bg4 {[%clk 0:02:52]} 11. h3 {[%clk 0:02:37]}  Bxf3 {[%clk 0:02:53]} 12. Qxf3 {[%clk 0:02:38]}  Nf5 {[%clk 0:02:52]} 13. Qd3 {[%clk 0:02:35]}  f6 {[%clk 0:02:46]} 14. Bf4 {[%clk 0:02:31]}  fxe5 {[%clk 0:02:45]} 15. Bxe5 {[%clk 0:02:32]}  Rb8 {[%clk 0:02:43]} 16. b3 {[%clk 0:02:25]}  Qh4 {[%clk 0:02:34]} 17. f4 {[%clk 0:02:12]}  Bxe5 {[%clk 0:02:18]} 18. dxe5 {[%clk 0:02:13]}  Rb4 {[%clk 0:02:17]} 19. Ne2 {[%clk 0:02:07]}  Re4 {[%clk 0:02:09]} 20. Rac1 {[%clk 0:02:04]}  Ne7 {[%clk 0:01:58]} 21. Kh2 {[%clk 0:01:54]}  g5 {[%clk 0:01:49]} 22. fxg5 {[%clk 0:01:42]}  Rf2 {[%clk 0:01:31]} 23. Rxf2 {[%clk 0:01:34]}  Qxf2 {[%clk 0:01:32]} 24. Ng3 {[%clk 0:01:16]}  Re3 {[%clk 0:01:23]} 0-1

[Event "December 12 Early 2023"]
[Site "https://www.chess.com"]
[Date "2023.12.12"]
[Round "8"]
[White "Goldin, Roman"]
[Black "Lund, Gunnar"]
[Result "0-1"]
[Board "74"]
[TimeControl "180+1"]
[WhiteFideId "2803860"]
[BlackFideId "1520814"]
[WhiteElo "2447"]
[BlackElo "2619"]
[WhiteTeam "ISR"]
[BlackTeam "NOR"]
[WhiteClock "0:00:00"]
[BlackClock "0:01:44"]

1. e4 {[%clk 0:02:55]}  e6 {[%clk 0:03:00]} 2. d4 {[%clk 0:02:53]}  d5 {[%clk 0:03:01]} 3. Nd2 {[%clk 0:02:50]}  Nf6 {[%clk 0:03:00]} 4. e5 {[%clk 0:02:46]}  Nfd7 {[%clk 0:03:01]} 5. f4 {[%clk 0:02:44]}  c5 {[%clk 0:03:02]} 6. c3 {[%clk 0:02:43]}  Nc6 {[%clk 0:03:03]} 7. Ndf3 {[%clk 0:02:43]}  a6 {[%clk 0:03:01]} 8. Bd3 {[%clk 0:02:41]}  b5 {[%clk 0:03:01]} 9. Ne2 {[%clk 0:02:36]}  b4 {[%clk 0:03:01]} 10. O-O {[%clk 0:02:35]}  Qb6 {[%clk 0:03:01]} 11. Kh1 {[%clk 0:02:34]}  g6 {[%clk 0:03:01]} 12. c4 {[%clk 0:02:29]}  dxc4 {[%clk 0:02:58]} 13. Bxc4 {[%clk 0:02:27]}  Na5 {[%clk 0:02:58]} 14. Bxe6 {[%clk 0:01:45]}  fxe6 {[%clk 0:02:55]} 15. d5 {[%clk 0:01:43]}  Bb7 {[%clk 0:02:54]} 16. dxe6 {[%clk 0:01:37]}  Qxe6 {[%clk 0:02:55]} 17. Ng3 {[%clk 0:01:24]}  O-O-O {[%clk 0:02:53]} 18. Ng5 {[%clk 0:01:10]}  Qd5 {[%clk 0:02:53]} 19. Qe2 {[%clk 0:00:52]}  h6 {[%clk 0:02:45]} 20. N5e4 {[%clk 0:00:50]}  Be7 {[%clk 0:02:45]} 21. Be3 {[%clk 0:00:45]}  Kb8 {[%clk 0:02:39]} 22. Rfd1 {[%clk 0:00:41]}  Qc4 {[%clk 0:02:39]} 23. Qf2 {[%clk 0:00:39]}  Bxe4 {[%clk 0:02:38]} 24. b3 {[%clk 0:00:32]}  Bxg2+ {[%clk 0:02:34]} 25. Qxg2 {[%clk 0:00:28]}  Qb5 {[%clk 0:02:34]} 26. Ne4 {[%clk 0:00:20]}  Qb7 {[%clk 0:02:34]} 27. Qxg6 {[%clk 0:00:12]}  Rhg8 {[%clk 0:02:30]} 28. Qh7 {[%clk 0:00:12]}  Nb6 {[%clk 0:01:53]} 29. Re1 {[%clk 0:00:09]}  Nd5 {[%clk 0:01:53]} 30. Bd2 {[%clk 0:00:07]}  Bh4 {[%clk 0:01:44]} 31. Re2 {[%clk 0:00:00]}  Qxh7 {[%clk 0:01:44]} 0-1